[Event "*** SCC Grand Prix: Titled Tuesday Blitz"]
[Site "Chess.com"]
[Date "2020.06.23"]
[Round "2"]
[White "Zq1"]
[Black "Chessy222222"]
[Result "1-0"]
[WhiteElo "2508"]
[BlackElo "2127"]
[TimeControl "180+1"]
[EndTime "10:18:51 PDT"]
[Termination "Zq1 won by resignation"]

1. d4 {[%clk 0:03:00.9]} 1... Nf6 {[%clk 0:02:59.4]} 2. c4 {[%clk 0:03:00.7]}
2... g6 {[%clk 0:02:59.5]} 3. Nc3 {[%clk 0:03:00]} 3... Bg7 {[%clk 0:02:59.8]}
4. e4 {[%clk 0:02:59.6]} 4... d6 {[%clk 0:03:00.2]} 5. Nf3 {[%clk 0:02:59]} 5...
O-O {[%clk 0:03:00.4]} 6. Be2 {[%clk 0:02:59.1]} 6... e5 {[%clk 0:02:58]} 7. O-O
{[%clk 0:02:58.6]} 7... Na6 {[%clk 0:02:58.5]} 8. Re1 {[%clk 0:02:55.8]} 8...
exd4 {[%clk 0:02:56.7]} 9. Nxd4 {[%clk 0:02:55]} 9... Nc5 {[%clk 0:02:57.1]} 10.
f3 {[%clk 0:02:54.8]} 10... a5 {[%clk 0:02:56.6]} 11. Be3 {[%clk 0:02:53.8]}
11... Re8 {[%clk 0:02:54.7]} 12. Qd2 {[%clk 0:02:53]} 12... Bd7 {[%clk
0:02:51.9]} 13. Rad1 {[%clk 0:02:51.8]} 13... Qe7 {[%clk 0:02:50.6]} 14. Ndb5
{[%clk 0:02:43.5]} 14... Rac8 {[%clk 0:02:40.2]} 15. Bf1 {[%clk 0:02:39.3]}
15... Red8 {[%clk 0:02:32]} 16. Kh1 {[%clk 0:02:20.6]} 16... Be6 {[%clk
0:02:25.6]} 17. Bg5 {[%clk 0:02:07.3]} 17... Rd7 {[%clk 0:01:56.2]} 18. Nd5
{[%clk 0:01:55.5]} 18... Bxd5 {[%clk 0:01:53.1]} 19. exd5 {[%clk 0:01:52.7]}
19... Qf8 {[%clk 0:01:48.4]} 20. b3 {[%clk 0:01:41.8]} 20... h6 {[%clk
0:01:41.9]} 21. Be3 {[%clk 0:01:39.6]} 21... b6 {[%clk 0:01:38.5]} 22. Na7
{[%clk 0:01:38.1]} 22... Re8 {[%clk 0:01:35.5]} 23. Nc6 {[%clk 0:01:36.3]} 23...
Kh7 {[%clk 0:01:34.4]} 24. Bf2 {[%clk 0:01:27.6]} 24... Nh5 {[%clk 0:01:23]} 25.
g3 {[%clk 0:01:24.2]} 25... f5 {[%clk 0:01:16.6]} 26. Rxe8 {[%clk 0:01:19.8]}
26... Qxe8 {[%clk 0:01:17.5]} 27. Re1 {[%clk 0:01:19.5]} 27... Qh8 {[%clk
0:01:12.5]} 28. Qc2 {[%clk 0:01:15.2]} 28... Bd4 {[%clk 0:01:08.1]} 29. Bxd4
{[%clk 0:01:08.9]} 29... Qxd4 {[%clk 0:01:08.9]} 30. Qe2 {[%clk 0:01:03.3]}
30... Qg7 {[%clk 0:00:53]} 31. Qc2 {[%clk 0:00:55.8]} 31... Qf7 {[%clk
0:00:40.2]} 32. a3 {[%clk 0:00:50.6]} 32... Ng7 {[%clk 0:00:32.1]} 33. b4 {[%clk
0:00:49.7]} 33... axb4 {[%clk 0:00:30.7]} 34. axb4 {[%clk 0:00:49.7]} 34... Nb7
{[%clk 0:00:30.4]} 35. Qe2 {[%clk 0:00:39]} 35... Nd8 {[%clk 0:00:29.5]} 36. Nd4
{[%clk 0:00:37]} 36... Qf6 {[%clk 0:00:25.5]} 37. Qe3 {[%clk 0:00:36.5]} 37...
Nf7 {[%clk 0:00:25]} 38. f4 {[%clk 0:00:35.3]} 38... g5 {[%clk 0:00:21.6]} 39.
Bd3 {[%clk 0:00:32.8]} 39... g4 {[%clk 0:00:21]} 40. Nxf5 {[%clk 0:00:24.6]}
40... Nxf5 {[%clk 0:00:19.5]} 41. Qe6 {[%clk 0:00:24.4]} 41... Re7 {[%clk
0:00:13.6]} 42. Qxe7 {[%clk 0:00:19.8]} 1-0

[Event "*** SCC Grand Prix: Titled Tuesday Blitz"]
[Site "Chess.com"]
[Date "2020.06.23"]
[Round "2"]
[White "Casablanca"]
[Black "PavelShkapenko"]
[Result "1/2-1/2"]
[WhiteElo "2342"]
[BlackElo "2656"]
[TimeControl "180+1"]
[EndTime "10:18:51 PDT"]
[Termination "Game drawn by agreement"]

1. d4 {[%clk 0:03:00.9]} 1... Nf6 {[%clk 0:02:59]} 2. Bg5 {[%clk 0:03:00]} 2...
Ne4 {[%clk 0:02:58.5]} 3. Bf4 {[%clk 0:02:59.6]} 3... d5 {[%clk 0:02:56.9]} 4.
e3 {[%clk 0:02:57.7]} 4... c5 {[%clk 0:02:56.8]} 5. Bd3 {[%clk 0:02:56.4]} 5...
Nf6 {[%clk 0:02:55.7]} 6. c3 {[%clk 0:02:55.9]} 6... Nc6 {[%clk 0:02:54.9]} 7.
Nd2 {[%clk 0:02:55.7]} 7... Bg4 {[%clk 0:02:51.3]} 8. Ngf3 {[%clk 0:02:49.1]}
8... e6 {[%clk 0:02:50.2]} 9. O-O {[%clk 0:02:48.9]} 9... Bh5 {[%clk 0:02:48]}
10. h3 {[%clk 0:02:45.2]} 10... Qb6 {[%clk 0:02:47.3]} 11. Qa4 {[%clk
0:02:42.7]} 11... Nd7 {[%clk 0:02:41.8]} 12. Rab1 {[%clk 0:02:35.8]} 12... Be7
{[%clk 0:02:40.5]} 13. b4 {[%clk 0:02:27.6]} 13... cxd4 {[%clk 0:02:31.8]} 14.
cxd4 {[%clk 0:02:21]} 14... O-O {[%clk 0:02:31]} 15. a3 {[%clk 0:02:21.3]} 15...
Bg6 {[%clk 0:02:25.5]} 16. Bxg6 {[%clk 0:02:20.6]} 16... hxg6 {[%clk 0:02:25.1]}
17. Rfc1 {[%clk 0:02:21.5]} 17... Rfc8 {[%clk 0:02:23.5]} 18. Nb3 {[%clk
0:02:20.1]} 18... Nf6 {[%clk 0:01:41.8]} 19. Nc5 {[%clk 0:02:13.7]} 19... Ne4
{[%clk 0:01:42.2]} 20. b5 {[%clk 0:01:59.1]} 20... Na5 {[%clk 0:01:32.7]} 21.
Ne5 {[%clk 0:01:46.9]} 21... Bxc5 {[%clk 0:01:21.3]} 22. Nd7 {[%clk 0:01:38.8]}
22... Qd8 {[%clk 0:01:20.8]} 23. Nxc5 {[%clk 0:01:38]} 23... Nxc5 {[%clk
0:01:20.6]} 24. dxc5 {[%clk 0:01:34.9]} 24... Nc4 {[%clk 0:01:20]} 25. e4 {[%clk
0:01:26.3]} 25... Rxc5 {[%clk 0:01:17.4]} 26. exd5 {[%clk 0:01:25.9]} 26... exd5
{[%clk 0:01:09.2]} 27. Be3 {[%clk 0:01:25.9]} 27... Rcc8 {[%clk 0:01:02.8]} 28.
Bd4 {[%clk 0:01:25.5]} 28... Qh4 {[%clk 0:00:54.3]} 29. Rd1 {[%clk 0:01:23.5]}
29... Nd6 {[%clk 0:00:46.9]} 30. Qb4 {[%clk 0:01:19.6]} 30... Nf5 {[%clk
0:00:46.8]} 31. Bc5 {[%clk 0:01:00.5]} 31... Qc4 {[%clk 0:00:41.8]} 32. Rbc1
{[%clk 0:00:50.1]} 32... Qxb4 {[%clk 0:00:37]} 33. Bxb4 {[%clk 0:00:50.6]} 33...
Rc4 {[%clk 0:00:26.1]} 34. Rxc4 {[%clk 0:00:42]} 34... dxc4 {[%clk 0:00:25.8]}
35. Rd7 {[%clk 0:00:42.9]} 35... Rc8 {[%clk 0:00:23.3]} 36. Rxb7 {[%clk
0:00:43.2]} 36... c3 {[%clk 0:00:23.6]} 37. Bxc3 {[%clk 0:00:43.8]} 37... Rxc3
{[%clk 0:00:21.6]} 38. Rxa7 {[%clk 0:00:44.3]} 38... Nd4 {[%clk 0:00:17.3]} 39.
b6 {[%clk 0:00:35.6]} 39... Rb3 {[%clk 0:00:16.6]} 40. b7 {[%clk 0:00:33.2]}
40... Kh7 {[%clk 0:00:17.1]} 41. a4 {[%clk 0:00:32.6]} 41... Nc6 {[%clk
0:00:17]} 42. Ra6 {[%clk 0:00:32.9]} 42... Nb8 {[%clk 0:00:17.1]} 43. Ra7 {[%clk
0:00:32.2]} 43... g5 {[%clk 0:00:16]} 44. a5 {[%clk 0:00:32.2]} 44... f6 {[%clk
0:00:14.9]} 45. a6 {[%clk 0:00:32.4]} 45... Rb6 {[%clk 0:00:14.2]} 46. Ra8
{[%clk 0:00:30.5]} 46... Nxa6 {[%clk 0:00:14.5]} 47. Rxa6 {[%clk 0:00:30.7]}
47... Rxb7 {[%clk 0:00:15]} 48. f3 {[%clk 0:00:28.9]} 48... Rb2 {[%clk
0:00:14.9]} 49. Kh2 {[%clk 0:00:29.3]} 49... Kg6 {[%clk 0:00:15.3]} 50. Ra5
{[%clk 0:00:29.1]} 50... Rc2 {[%clk 0:00:15.6]} 51. Kg3 {[%clk 0:00:28.8]} 51...
f5 {[%clk 0:00:15.2]} 52. Ra6+ {[%clk 0:00:28.8]} 52... Kh5 {[%clk 0:00:15.4]}
53. Ra8 {[%clk 0:00:29.4]} 53... f4+ {[%clk 0:00:15.3]} 54. Kh2 {[%clk 0:00:30]}
54... Kg6 {[%clk 0:00:15.7]} 55. Ra6+ {[%clk 0:00:29.6]} 55... Kh5 {[%clk
0:00:16]} 56. Re6 {[%clk 0:00:30.2]} 56... Rd2 {[%clk 0:00:15.5]} 57. Re5 {[%clk
0:00:29.3]} 1/2-1/2

[Event "*** SCC Grand Prix: Titled Tuesday Blitz"]
[Site "Chess.com"]
[Date "2020.06.23"]
[Round "2"]
[White "Jumbo"]
[Black "Roman_Ovetchkin"]
[Result "1/2-1/2"]
[WhiteElo "2843"]
[BlackElo "2559"]
[TimeControl "180+1"]
[EndTime "10:18:53 PDT"]
[Termination "Game drawn by repetition"]

1. d4 {[%clk 0:03:00.9]} 1... Nf6 {[%clk 0:02:59.2]} 2. Bf4 {[%clk 0:03:01.1]}
2... g6 {[%clk 0:02:56.3]} 3. e3 {[%clk 0:03:00.7]} 3... Bg7 {[%clk 0:02:56.9]}
4. Nf3 {[%clk 0:03:01.2]} 4... O-O {[%clk 0:02:57.5]} 5. Be2 {[%clk 0:03:01.7]}
5... d6 {[%clk 0:02:58]} 6. O-O {[%clk 0:02:54.9]} 6... c5 {[%clk 0:02:57.9]} 7.
c3 {[%clk 0:02:54]} 7... b6 {[%clk 0:02:38.8]} 8. h3 {[%clk 0:02:52.5]} 8... Bb7
{[%clk 0:02:38.5]} 9. Nbd2 {[%clk 0:02:53]} 9... Nbd7 {[%clk 0:02:14.1]} 10. a4
{[%clk 0:02:53]} 10... a6 {[%clk 0:02:12.8]} 11. Bh2 {[%clk 0:02:52.1]} 11...
Ra7 {[%clk 0:02:08.1]} 12. Bd3 {[%clk 0:02:51.9]} 12... Qa8 {[%clk 0:02:06.9]}
13. Qe2 {[%clk 0:02:46.3]} 13... Rc8 {[%clk 0:02:02.5]} 14. e4 {[%clk
0:02:30.7]} 14... cxd4 {[%clk 0:01:31.5]} 15. cxd4 {[%clk 0:02:31.6]} 15... Ne8
{[%clk 0:01:30.3]} 16. Rfe1 {[%clk 0:02:23.8]} 16... e5 {[%clk 0:01:18]} 17. d5
{[%clk 0:02:16.9]} 17... Nc5 {[%clk 0:01:10.9]} 18. Bc2 {[%clk 0:01:52.5]} 18...
Qb8 {[%clk 0:01:06.5]} 19. b4 {[%clk 0:01:47.4]} 19... Nd7 {[%clk 0:01:05.9]}
20. Bd3 {[%clk 0:01:47.5]} 20... Ndf6 {[%clk 0:00:57.6]} 21. Rec1 {[%clk
0:01:36.3]} 21... a5 {[%clk 0:00:52]} 22. bxa5 {[%clk 0:01:00.4]} 22... Rxa5
{[%clk 0:00:43.3]} 23. Nc4 {[%clk 0:00:56.6]} 23... Rac5 {[%clk 0:00:42.3]} 24.
Rcb1 {[%clk 0:00:57.1]} 24... Nxe4 {[%clk 0:00:25.7]} 25. Rxb6 {[%clk
0:00:47.6]} 25... N4f6 {[%clk 0:00:16.7]} 26. Rab1 {[%clk 0:00:42.7]} 26... R8c7
{[%clk 0:00:16.3]} 27. Qb2 {[%clk 0:00:19.9]} 27... e4 {[%clk 0:00:14.6]} 28.
Rxb7 {[%clk 0:00:18.3]} 28... Rxb7 {[%clk 0:00:14.9]} 29. Qxb7 {[%clk
0:00:19.1]} 29... Qxb7 {[%clk 0:00:15.1]} 30. Rxb7 {[%clk 0:00:19.5]} 30... exd3
{[%clk 0:00:15.3]} 31. Nfd2 {[%clk 0:00:17.7]} 31... Ne4 {[%clk 0:00:12]} 32.
Rb8 {[%clk 0:00:16]} 32... Nxd2 {[%clk 0:00:08.6]} 33. Rxe8+ {[%clk 0:00:15.7]}
33... Bf8 {[%clk 0:00:09.3]} 34. Bxd6 {[%clk 0:00:14]} 34... Rxc4 {[%clk
0:00:07.7]} 35. Bxf8 {[%clk 0:00:06.5]} 35... Rc1+ {[%clk 0:00:07.2]} 36. Kh2
{[%clk 0:00:07]} 36... Nf1+ {[%clk 0:00:07.2]} 37. Kg1 {[%clk 0:00:07.6]} 37...
Ne3+ {[%clk 0:00:06.3]} 38. Kh2 {[%clk 0:00:07.7]} 38... Nf1+ {[%clk 0:00:06.4]}
39. Kg1 {[%clk 0:00:07.9]} 39... Ne3+ {[%clk 0:00:06.6]} 40. Kh2 {[%clk
0:00:08.4]} 40... Nf1+ {[%clk 0:00:06.6]} 1/2-1/2

[Event "*** SCC Grand Prix: Titled Tuesday Blitz"]
[Site "Chess.com"]
[Date "2020.06.23"]
[Round "2"]
[White "maciek_92"]
[Black "dcremisi"]
[Result "0-1"]
[WhiteElo "2699"]
[BlackElo "2412"]
[TimeControl "180+1"]
[EndTime "10:18:55 PDT"]
[Termination "dcremisi won by checkmate"]

1. e4 {[%clk 0:03:00.9]} 1... e6 {[%clk 0:02:59.7]} 2. d4 {[%clk 0:03:00.8]}
2... d5 {[%clk 0:03:00]} 3. Nd2 {[%clk 0:03:00.6]} 3... dxe4 {[%clk 0:02:56.1]}
4. Nxe4 {[%clk 0:03:00.5]} 4... Bd7 {[%clk 0:02:56.2]} 5. Nf3 {[%clk 0:02:59.5]}
5... Bc6 {[%clk 0:02:56.9]} 6. Bd3 {[%clk 0:02:59]} 6... Nd7 {[%clk 0:02:57.5]}
7. Qe2 {[%clk 0:02:57.7]} 7... Ngf6 {[%clk 0:02:57]} 8. Bg5 {[%clk 0:02:44.8]}
8... Be7 {[%clk 0:02:55.7]} 9. Bxf6 {[%clk 0:02:44.1]} 9... Nxf6 {[%clk
0:02:54.6]} 10. O-O-O {[%clk 0:02:44.6]} 10... Nxe4 {[%clk 0:02:50.9]} 11. Bxe4
{[%clk 0:02:44.1]} 11... Bxe4 {[%clk 0:02:51.4]} 12. Qxe4 {[%clk 0:02:45]} 12...
c6 {[%clk 0:02:51.9]} 13. Kb1 {[%clk 0:02:43.9]} 13... Qc7 {[%clk 0:02:45.8]}
14. h4 {[%clk 0:02:41.1]} 14... O-O-O {[%clk 0:02:45.5]} 15. h5 {[%clk
0:02:36.3]} 15... h6 {[%clk 0:02:44]} 16. Ne5 {[%clk 0:02:36.2]} 16... Rhf8
{[%clk 0:02:40]} 17. Rh3 {[%clk 0:02:34.7]} 17... Bf6 {[%clk 0:02:39.2]} 18. Nc4
{[%clk 0:02:30.7]} 18... Kb8 {[%clk 0:02:34.6]} 19. Rhd3 {[%clk 0:02:27.3]}
19... Rd7 {[%clk 0:02:31.9]} 20. f4 {[%clk 0:02:26.3]} 20... Rfd8 {[%clk
0:02:31.5]} 21. g3 {[%clk 0:02:24.1]} 21... Rd5 {[%clk 0:02:16.3]} 22. g4 {[%clk
0:02:03.3]} 22... c5 {[%clk 0:02:14.9]} 23. Ne5 {[%clk 0:01:54.1]} 23... cxd4
{[%clk 0:01:57.6]} 24. Rxd4 {[%clk 0:01:51.5]} 24... Rxd4 {[%clk 0:01:57.1]} 25.
Rxd4 {[%clk 0:01:51]} 25... Rxd4 {[%clk 0:01:57.3]} 26. Qxd4 {[%clk 0:01:51.9]}
26... Bxe5 {[%clk 0:01:57.7]} 27. fxe5 {[%clk 0:01:51.4]} 27... b6 {[%clk
0:01:49.9]} 28. a4 {[%clk 0:01:49]} 28... Kc8 {[%clk 0:01:45.6]} 29. Qe4 {[%clk
0:01:31.1]} 29... Kd7 {[%clk 0:01:35.9]} 30. b3 {[%clk 0:01:26.8]} 30... Ke7
{[%clk 0:01:29.1]} 31. Kb2 {[%clk 0:01:25.4]} 31... f6 {[%clk 0:01:25.4]} 32.
exf6+ {[%clk 0:01:26.3]} 32... Kxf6 {[%clk 0:01:25.5]} 33. Qg6+ {[%clk 0:01:22]}
33... Ke5 {[%clk 0:01:25.4]} 34. c4 {[%clk 0:00:49.4]} 34... Qd7 {[%clk
0:01:12]} 35. Kc2 {[%clk 0:00:42.7]} 35... Qb7 {[%clk 0:01:05.2]} 36. Kb2 {[%clk
0:00:20.4]} 36... Qd7 {[%clk 0:01:03.3]} 37. Kc2 {[%clk 0:00:20.4]} 37... Qb7
{[%clk 0:01:00.7]} 38. Kc3 {[%clk 0:00:18.7]} 38... Qd7 {[%clk 0:00:46.9]} 39.
Kb4 {[%clk 0:00:12.1]} 39... a6 {[%clk 0:00:42.5]} 40. Qc2 {[%clk 0:00:08.4]}
40... Qd6+ {[%clk 0:00:37.4]} 41. Kc3 {[%clk 0:00:08.7]} 41... Qd4+ {[%clk
0:00:36.5]} 42. Kb4 {[%clk 0:00:09]} 42... Qxg4 {[%clk 0:00:27.7]} 43. Qh2+
{[%clk 0:00:09]} 43... Qf4 {[%clk 0:00:23.3]} 44. Qe2+ {[%clk 0:00:06]} 44...
Kd6 {[%clk 0:00:21.2]} 45. Qg2 {[%clk 0:00:03.6]} 45... Qe5 {[%clk 0:00:18.6]}
46. Qf3 {[%clk 0:00:02.6]} 46... a5+ {[%clk 0:00:15.9]} 47. Ka3 {[%clk
0:00:02.6]} 47... Qa1# {[%clk 0:00:16.2]} 0-1

[Event "*** SCC Grand Prix: Titled Tuesday Blitz"]
[Site "Chess.com"]
[Date "2020.06.23"]
[Round "2"]
[White "Playgood28"]
[Black "DraG0s3L"]
[Result "0-1"]
[WhiteElo "2277"]
[BlackElo "2469"]
[TimeControl "180+1"]
[EndTime "10:18:56 PDT"]
[Termination "DraG0s3L won on time"]

1. d4 {[%clk 0:03:00.9]} 1... Nf6 {[%clk 0:03:00]} 2. c4 {[%clk 0:03:00.7]} 2...
e6 {[%clk 0:03:00.1]} 3. Nc3 {[%clk 0:03:00.6]} 3... Bb4 {[%clk 0:03:00.3]} 4.
Qc2 {[%clk 0:03:00.6]} 4... O-O {[%clk 0:02:59.6]} 5. a3 {[%clk 0:03:00.5]} 5...
Bxc3+ {[%clk 0:02:59.3]} 6. Qxc3 {[%clk 0:03:00.4]} 6... b6 {[%clk 0:03:00]} 7.
e3 {[%clk 0:02:59.7]} 7... Bb7 {[%clk 0:03:00.1]} 8. Nf3 {[%clk 0:02:59.5]} 8...
Ne4 {[%clk 0:02:59]} 9. Qc2 {[%clk 0:02:58.5]} 9... d6 {[%clk 0:02:57.7]} 10.
Be2 {[%clk 0:02:58.3]} 10... Nd7 {[%clk 0:02:56.9]} 11. b4 {[%clk 0:02:58.3]}
11... e5 {[%clk 0:02:40.8]} 12. dxe5 {[%clk 0:02:46.5]} 12... Nxe5 {[%clk
0:02:40.5]} 13. Nxe5 {[%clk 0:02:46.1]} 13... dxe5 {[%clk 0:02:40.9]} 14. O-O
{[%clk 0:02:43]} 14... Ng5 {[%clk 0:02:35]} 15. f3 {[%clk 0:02:38.6]} 15... Qe7
{[%clk 0:02:31.9]} 16. Bb2 {[%clk 0:02:35]} 16... h5 {[%clk 0:02:28.2]} 17. c5
{[%clk 0:02:20.4]} 17... Rad8 {[%clk 0:02:22]} 18. Rfd1 {[%clk 0:02:15.5]} 18...
h4 {[%clk 0:02:20]} 19. h3 {[%clk 0:02:14.5]} 19... Kh8 {[%clk 0:01:52]} 20. Kh2
{[%clk 0:02:07.8]} 20... Bd5 {[%clk 0:01:35.1]} 21. cxb6 {[%clk 0:01:57]} 21...
cxb6 {[%clk 0:01:29.2]} 22. Rac1 {[%clk 0:01:56.2]} 22... Qf6 {[%clk 0:01:23.4]}
23. f4 {[%clk 0:01:33.7]} 23... Ne4 {[%clk 0:01:19.6]} 24. Bxe5 {[%clk 0:01:32]}
24... Qg6 {[%clk 0:01:18.5]} 25. Bf3 {[%clk 0:01:27.5]} 25... Qg3+ {[%clk
0:01:12.9]} 26. Kg1 {[%clk 0:01:16.8]} 26... f6 {[%clk 0:00:53.9]} 27. Bxe4
{[%clk 0:00:59.5]} 27... Qxe3+ {[%clk 0:00:52.5]} 28. Qf2 {[%clk 0:00:53.7]}
28... Qxe4 {[%clk 0:00:52]} 29. Bb2 {[%clk 0:00:43.2]} 29... Kg8 {[%clk
0:00:48.5]} 30. Re1 {[%clk 0:00:41.1]} 30... Qg6 {[%clk 0:00:46]} 31. Rcd1
{[%clk 0:00:31.5]} 31... Be4 {[%clk 0:00:42.5]} 32. f5 {[%clk 0:00:27.4]} 32...
Qxf5 {[%clk 0:00:36.4]} 33. Qxh4 {[%clk 0:00:18.9]} 33... Bxg2 {[%clk
0:00:31.9]} 34. Kxg2 {[%clk 0:00:15.5]} 34... Qc2+ {[%clk 0:00:30.9]} 35. Qf2
{[%clk 0:00:13.6]} 35... Qc6+ {[%clk 0:00:20.1]} 36. Kg1 {[%clk 0:00:11.1]}
36... Rfe8 {[%clk 0:00:18.8]} 37. Rxe8+ {[%clk 0:00:09.6]} 37... Rxe8 {[%clk
0:00:18.7]} 38. Re1 {[%clk 0:00:09.3]} 38... Rd8 {[%clk 0:00:18.9]} 39. Qe3
{[%clk 0:00:05.2]} 39... Qc2 {[%clk 0:00:13.2]} 40. Qe6+ {[%clk 0:00:03.4]}
40... Kh8 {[%clk 0:00:13.1]} 41. Bxf6 {[%clk 0:00:03]} 41... Qg6+ {[%clk
0:00:09.7]} 0-1

[Event "*** SCC Grand Prix: Titled Tuesday Blitz"]
[Site "Chess.com"]
[Date "2020.06.23"]
[Round "2"]
[White "vinniethepooh"]
[Black "UKR_Master"]
[Result "1-0"]
[WhiteElo "2555"]
[BlackElo "2305"]
[TimeControl "180+1"]
[EndTime "10:18:57 PDT"]
[Termination "vinniethepooh won by resignation"]

1. d4 {[%clk 0:03:00.9]} 1... Nf6 {[%clk 0:02:59.8]} 2. c4 {[%clk 0:03:01.6]}
2... e6 {[%clk 0:02:59.2]} 3. Nc3 {[%clk 0:03:02.1]} 3... Bb4 {[%clk 0:02:59.7]}
4. e3 {[%clk 0:03:02.6]} 4... d5 {[%clk 0:02:59.7]} 5. Bd3 {[%clk 0:03:03]} 5...
O-O {[%clk 0:02:59.6]} 6. Nf3 {[%clk 0:03:03.2]} 6... a6 {[%clk 0:02:58.7]} 7.
O-O {[%clk 0:03:03.2]} 7... dxc4 {[%clk 0:02:58.4]} 8. Bxc4 {[%clk 0:03:04.1]}
8... c5 {[%clk 0:02:58.7]} 9. Bd3 {[%clk 0:02:59.9]} 9... Qc7 {[%clk 0:02:55.3]}
10. a3 {[%clk 0:02:46.4]} 10... Bxc3 {[%clk 0:02:54]} 11. bxc3 {[%clk
0:02:47.3]} 11... b5 {[%clk 0:02:52.7]} 12. a4 {[%clk 0:02:41.9]} 12... c4
{[%clk 0:02:49.9]} 13. Bc2 {[%clk 0:02:39]} 13... Bb7 {[%clk 0:02:49.7]} 14. Nd2
{[%clk 0:02:32.3]} 14... e5 {[%clk 0:02:47.4]} 15. f4 {[%clk 0:02:23.7]} 15...
exd4 {[%clk 0:02:42.7]} 16. exd4 {[%clk 0:02:13.6]} 16... Nbd7 {[%clk
0:02:40.7]} 17. Nf3 {[%clk 0:02:00.6]} 17... Nd5 {[%clk 0:02:32.7]} 18. Bd2
{[%clk 0:01:52.8]} 18... N7f6 {[%clk 0:01:36.6]} 19. Ne5 {[%clk 0:01:45.6]}
19... Rfe8 {[%clk 0:01:34.6]} 20. Rf3 {[%clk 0:01:35.6]} 20... b4 {[%clk
0:01:20.5]} 21. cxb4 {[%clk 0:01:14.4]} 21... Qb6 {[%clk 0:01:18.9]} 22. Be1
{[%clk 0:01:09.5]} 22... Nxb4 {[%clk 0:01:16]} 23. Rf2 {[%clk 0:00:34.3]} 23...
Nxc2 {[%clk 0:01:12.4]} 24. Rxc2 {[%clk 0:00:35.2]} 24... Qe6 {[%clk 0:00:48.1]}
25. Rxc4 {[%clk 0:00:19.7]} 25... Qd5 {[%clk 0:00:43.3]} 26. Qe2 {[%clk
0:00:19.8]} 26... Ne4 {[%clk 0:00:21.9]} 27. Qf1 {[%clk 0:00:09.5]} 27... f6
{[%clk 0:00:20.1]} 28. Nf3 {[%clk 0:00:09.7]} 28... Nd6 {[%clk 0:00:17.6]} 29.
Rc5 {[%clk 0:00:09.5]} 29... Qb3 {[%clk 0:00:17.6]} 30. Ba5 {[%clk 0:00:03.9]}
30... Re3 {[%clk 0:00:14.9]} 31. Rb1 {[%clk 0:00:03.6]} 31... Qa3 {[%clk
0:00:10.8]} 32. Rxb7 {[%clk 0:00:03.4]} 32... Nxb7 {[%clk 0:00:10.8]} 33. Qc4+
{[%clk 0:00:03.1]} 33... Kh8 {[%clk 0:00:10.3]} 34. Rc8+ {[%clk 0:00:03.4]}
34... Re8 {[%clk 0:00:10]} 35. Rxa8 {[%clk 0:00:03]} 35... Rd8 {[%clk
0:00:09.8]} 36. Bxd8 {[%clk 0:00:02.7]} 36... Qa1+ {[%clk 0:00:06.2]} 37. Kf2
{[%clk 0:00:03]} 37... Qb2+ {[%clk 0:00:06.3]} 38. Kg3 {[%clk 0:00:03.5]} 1-0

[Event "*** SCC Grand Prix: Titled Tuesday Blitz"]
[Site "Chess.com"]
[Date "2020.06.23"]
[Round "2"]
[White "WinstonSilvakov"]
[Black "aa175"]
[Result "0-1"]
[WhiteElo "2141"]
[BlackElo "2405"]
[TimeControl "180+1"]
[EndTime "10:18:58 PDT"]
[Termination "aa175 won on time"]

1. d4 {[%clk 0:03:00.9]} 1... e5 {[%clk 0:02:58.1]} 2. dxe5 {[%clk 0:02:59.2]}
2... Nc6 {[%clk 0:02:56.6]} 3. f4 {[%clk 0:02:57.9]} 3... d5 {[%clk 0:02:49.8]}
4. exd6 {[%clk 0:02:58.8]} 4... Bxd6 {[%clk 0:02:48.2]} 5. e3 {[%clk 0:02:51.1]}
5... Nf6 {[%clk 0:02:42.4]} 6. Nf3 {[%clk 0:02:49.2]} 6... Bg4 {[%clk 0:02:36]}
7. Be2 {[%clk 0:02:47.4]} 7... Bc5 {[%clk 0:02:33.1]} 8. Qxd8+ {[%clk
0:02:42.2]} 8... Rxd8 {[%clk 0:02:34]} 9. c3 {[%clk 0:02:31.1]} 9... Nd5 {[%clk
0:02:27.2]} 10. e4 {[%clk 0:02:29]} 10... Ne3 {[%clk 0:02:26.3]} 11. Bxe3 {[%clk
0:02:18.7]} 11... Bxe3 {[%clk 0:02:27.2]} 12. g3 {[%clk 0:02:17.9]} 12... Bc1
{[%clk 0:02:02.2]} 13. Nbd2 {[%clk 0:02:07.4]} 13... Bxb2 {[%clk 0:01:56.2]} 14.
Rb1 {[%clk 0:02:05.8]} 14... Bxc3 {[%clk 0:01:54.4]} 15. Rd1 {[%clk 0:01:35.5]}
15... Nb4 {[%clk 0:01:33.5]} 16. a4 {[%clk 0:00:50.8]} 16... Nd3+ {[%clk
0:01:11.4]} 17. Kf1 {[%clk 0:00:43.8]} 17... Nb2 {[%clk 0:01:10.2]} 18. Rb1
{[%clk 0:00:39.8]} 18... Bh3+ {[%clk 0:00:48.1]} 19. Kf2 {[%clk 0:00:36]} 19...
O-O {[%clk 0:00:33.2]} 20. Rhc1 {[%clk 0:00:31]} 20... Bxd2 {[%clk 0:00:25.4]}
21. Rc2 {[%clk 0:00:27.4]} 21... Nxa4 {[%clk 0:00:02.8]} 22. Rxd2 {[%clk
0:00:19.7]} 22... Rxd2 {[%clk 0:00:02.4]} 23. Nxd2 {[%clk 0:00:18.7]} 23... Nb6
{[%clk 0:00:03.3]} 24. Rb5 {[%clk 0:00:17.6]} 24... Rd8 {[%clk 0:00:03.3]} 25.
Nf3 {[%clk 0:00:15.2]} 25... Bd7 {[%clk 0:00:03.7]} 26. Ne5 {[%clk 0:00:08.4]}
26... Bxb5 {[%clk 0:00:03]} 27. Bxb5 {[%clk 0:00:08.6]} 27... a6 {[%clk
0:00:03.6]} 28. Be2 {[%clk 0:00:07.1]} 28... Rd2 {[%clk 0:00:03.7]} 29. Ke3
{[%clk 0:00:06.9]} 29... Ra2 {[%clk 0:00:04.2]} 30. Bf3 {[%clk 0:00:07.3]} 30...
Ra3+ {[%clk 0:00:04.5]} 31. Ke2 {[%clk 0:00:07.7]} 31... f6 {[%clk 0:00:05.3]}
32. Nd3 {[%clk 0:00:06.9]} 32... Ra2+ {[%clk 0:00:05.3]} 33. Ke3 {[%clk
0:00:06.1]} 33... Rxh2 {[%clk 0:00:05.2]} 34. Nc5 {[%clk 0:00:07]} 34... Ra2
{[%clk 0:00:04.6]} 35. Nxb7 {[%clk 0:00:06.7]} 35... Nc4+ {[%clk 0:00:04.6]} 36.
Kd4 {[%clk 0:00:04.1]} 36... Nd6 {[%clk 0:00:04.8]} 37. Bd1 {[%clk 0:00:02.8]}
37... Ra1 {[%clk 0:00:02.7]} 38. Bb3+ {[%clk 0:00:02.9]} 38... Kf8 {[%clk
0:00:03.3]} 39. Nc5 {[%clk 0:00:02.8]} 39... Rb1 {[%clk 0:00:03.5]} 40. Ne6+
{[%clk 0:00:01.7]} 40... Ke7 {[%clk 0:00:04.1]} 41. Bd5 {[%clk 0:00:02]} 41...
Rb4+ {[%clk 0:00:03.9]} 0-1